Cogmind - Beta 15 --- EXPLORER MODE // 2025.06.04 @ 21:32:37 // Winter2019/RPGLIKE Player: TeaParrot Result: Self-destructed Performance ------------- Evolutions (2) 1000 Regions Visited (7) 1400 Robots Destroyed (135) 675 Value Destroyed (2439) 2439 Prototype IDs (35) 700 Alien Tech Used (0) 0 Bonus (377) 377 TOTAL SCORE: 6591 Bonus ------- Follower Combat Kills 77 Aligned with FarCom 300 Cogmind --------- Core Integrity 1300/1300 Matter 280/300 Energy 1010/1010 System Corruption 0% Temperature Cool (0) Movement Hovering (48) Location -8/Materials Parts ------- > --- POWER (2) -------- Light Nuclear Core Hybrid Deuterium Engine > --- PROPULSION (4) --- Gravmag System Gravmag System Gravmag System Gravmag System > --- UTILITY (4) ------ Weight Redist. System Structural Scanner Improved Medium Armor Plating Improved Medium Armor Plating > --- WEAPON (3) ------- Heavy EM Shotgun Lightning Gun Heavy Ion Cannon > --- INVENTORY (4) ---- Skeleton Box System Restoration Module Field Laser Heavy Laser Peak State ------------ > --- POWER ------------ Light Nuclear Core Hybrid Deuterium Engine > --- PROPULSION ------- Gravmag System Combat Airjet Combat Airjet Combat Airjet > --- UTILITY ---------- Weight Redist. System Structural Scanner Hardened Medium Armor Plating Improved Light Armor Plating > --- WEAPON ----------- Lightning Gun Heavy Laser Heavy Ion Cannon > --- INVENTORY -------- Improved Hover Unit Improved Hover Unit Skeleton Box System Restoration Module [Rating: 48] Favorites ----------- Power Light Nuclear Core Engine Light Deuterium Engine Power Core Light Nuclear Core Propulsion Combat Airjet Leg Aluminum Leg Hover Unit Combat Airjet Utility Structural Scanner Device Structural Scanner Storage High-capacity Battery Protection Hardened Light Armor Plating Weapon Particle Gun Energy Gun Particle Gun Energy Cannon Heavy Ion Cannon Ballistic Gun Heavy Assault Rifle Launcher Grenade Launcher Build | -11 -10 -10 -9 -9 -9 -8 -8 ------- Run | Yrd Mat Min Mat Min Exi Min Mat Slots Evolved 9 | . 5 1 2 . 1 . . Power 1 | . 1 . . . . . . Propulsion 3 | . 1 1 1 . . . . Utility 3 | . 2 . . . 1 . . Weapon 2 | . 1 . 1 . . . . Parts Attached 48 | 4 9 9 8 7 1 . 10 Power 6 | 1 2 2 . 1 . . . Engine 5 | 1 2 1 . 1 . . . Core 1 | . . 1 . . . . . Reactor . | . . . . . . . . Propulsion 11 | 1 2 3 . 1 . . 4 Treads . | . . . . . . . . Leg 1 | 1 . . . . . . . Wheel . | . . . . . . . . Hover 10 | . 2 3 . 1 . . 4 Flight . | . . . . . . . . Utility 13 | 1 1 2 2 2 1 . 4 Device 6 | . 1 2 1 2 . . . Storage 1 | . . . . . 1 . . Processor . | . . . . . . . . Hackware . | . . . . . . . . Protection 6 | 1 . . 1 . . . 4 Artifact . | . . . . . . . . Weapon 18 | 1 4 2 6 3 . . 2 Energy Gun 12 | 1 2 2 3 2 . . 2 Energy Cannon 2 | . . . 1 1 . . . Ballistic Gun 3 | . 1 . 2 . . . . Ballistic Cannon . | . . . . . . . . Launcher 1 | . 1 . . . . . . Special Weapon . | . . . . . . . . Impact Weapon . | . . . . . . . . Slashing Weapon . | . . . . . . . . Piercing Weapon . | . . . . . . . . Special Melee Weapon . | . . . . . . . . Unidentified Prototypes 2 | . . . 1 . . . 1 Parts Lost 3 | . . 3 . . . . . Power . | . . . . . . . . Propulsion 2 | . . 2 . . . . . Utility 1 | . . 1 . . . . . Weapon . | . . . . . . . . Highest Loss Streak 1 | . . 1 . . . . . To Critical Strikes . | . . . . . . . . Average Backups 2 | . . 2 2 3 3 3 3 Power . | . . . . . . . . Propulsion . | . . . . 1 1 1 1 Utility . | . . . . 1 1 1 1 Weapon 1 | . . 1 . 1 . . . Tool/Special . | . . . . . . . . Unused Backups 6 | . . . 2 . . . 4 Power . | . . . . . . . . Propulsion 2 | . . . . . . . 2 Utility 3 | . . . 2 . . . 1 Weapon . | . . . . . . . . Tool/Special 1 | . . . . . . . 1 Average Slot Usage (%) 90 | . 80 85 95 97 93 92 99 Engine 10 | . 18 11 9 8 7 7 7 Core 7 | . . 9 9 8 7 7 7 Leg 1 | . 10 . . . . . . Hover 25 | . 7 25 29 31 30 30 30 Device 14 | . 6 16 18 16 15 15 15 Protection 8 | . 16 3 8 7 7 7 14 Energy Gun 16 | . 13 20 17 14 15 15 15 Energy Cannon 2 | . . . . 7 7 7 7 Peak Build Rating 48 | 4 10 34 34 41 43 42 48 Average Rating 28 | 3 5 23 29 39 41 42 46 On Entrance 25 | . 4 10 34 31 41 42 42 Naked Turns . | . . . . . . . . Heaviest Build 44 | 8 20 22 23 34 34 34 44 Greatest Support 61 | 10 22 46 52 59 59 59 61 Greatest Overweight (x) 1 | 1 1 1 . . . . . Average Overweight (x) . | . . . . . . . . Largest Inventory Capacity 4 | . 3 3 4 4 4 4 4 Average Capacity 3 | . 1 3 3 4 4 4 4 Most Carried 4 | . 3 3 3 4 4 3 4 Average Carried 2 | . . 2 1 3 3 3 3 Final Capacity 4 | . 3 3 4 4 4 4 4 Final Carried 4 | . 2 3 3 4 3 3 4 Class Distribution -------------------- 43% | Scavenger-Mutant 26% | Scavenger-Tank 26% | Hacker-Mutant 3% | Hacker-Tank Dominant Class ---------------- Hacker-Mutant | -10/Materials Scavenger-Mutant | -10/Mines Scavenger-Mutant | -9/Materials Scavenger-Tank | -9/Mines Scavenger-Tank | -9/Exiles Scavenger-Tank | -8/Mines Scavenger-Tank | -8/Materials Resources | -11 -10 -10 -9 -9 -9 -8 -8 ----------- Run | Yrd Mat Min Mat Min Exi Min Mat Matter Collected 1000 | 88 231 242 219 100 . 10 110 Remotely . | . . . . . . . . Salvage Created 4287 | . 244 1373 1473 144 . 75 978 Parts 266 | . 20 67 89 22 . 8 60 Haulers Intercepted 3 | . . . 2 . . . 1 Recyclers Shooed 4 | . 2 . 2 . . . . Parts Field Recycled . | . . . . . . . . Retrieved Matter . | . . . . . . . . Parts Self-Destructed . | . . . . . . . . Prevented . | . . . . . . . . Kills | -11 -10 -10 -9 -9 -9 -8 -8 ------- Run | Yrd Mat Min Mat Min Exi Min Mat Combat Hostiles Destroyed 77 | . 6 21 27 3 . 5 15 Guns 61 | . 2 20 23 3 . 3 10 Cannons 7 | . . . . . . 2 5 AOE 6 | . 4 . 2 . . . . Classes Destroyed 15 | . 4 4 5 . . 1 1 Worker 28 | . 5 17 5 . . . 1 Builder 13 | . 1 5 3 2 . . 2 Tunneler 5 | . . 2 . 2 . . 1 Hauler 3 | . . . 2 . . . 1 Recycler 10 | . . 6 1 . . . 3 Mechanic 1 | . . . 1 . . . . Operator 5 | . . . 3 . . . 2 Watcher 8 | . 1 . 3 . . . 4 Swarmer 21 | . . . 6 3 . 3 9 Grunt 29 | . 6 4 15 . . 1 3 Duelist 1 | . . . . . . 1 . Sentry 8 | . . . 6 . . . 2 Demolisher 2 | . . 2 . . . . . Hunter 1 | . . . . . . . 1 Assembled 15 | . . 15 . . . . . Best Kill Streak 13 | . 4 12 6 5 . 5 13 Combat Bots Only 10 | . 2 10 4 3 . 5 5 Max Kills in Single Turn 3 | . 1 2 3 2 . 1 2 Gunslinging 1 | . . . 1 . . . . Exploded 1 | . 1 . 1 . . . . Melee . | . . . . . . . . Uniques/NPCs Destroyed . | . . . . . . . . Combat | -11 -10 -10 -9 -9 -9 -8 -8 -------- Run | Yrd Mat Min Mat Min Exi Min Mat Hostile Shots Fired 320 | . 22 145 94 4 . 9 46 Missed 104 | . 7 35 42 1 . 4 15 Hits 216 | . 15 110 52 3 . 5 31 Melee 11 | . . 11 . . . . . Projectile 205 | . 15 99 52 3 . 5 31 AOE 8 | . . 8 . . . . . Critical Strikes 5 | . 1 1 . . . 1 2 Part Disruptions 1 | . . 1 . . . . . Damage Taken 1893 | . 155 1069 387 38 . 28 216 Core 1332 | . 107 797 277 21 . 14 116 Absorbed by Shields . | . . . . . . . . Redirected to Core 991 | . 78 589 194 21 . 14 95 Ignored by Resistances 1383 | . 111 757 289 27 . 21 178 Regen/Repaired (Parts) 74 | . 16 16 42 . . . . Core Remaining (%) 74 | 100 . 36 . . . 88 . Volleys Fired 307 | . 44 98 108 7 . 8 42 Largest 3 | . 2 2 2 3 . 3 3 Hottest 189 | . 80 130 130 189 . 189 189 Shots Fired 585 | . 49 196 182 21 . 22 115 Gun 520 | . 40 196 182 14 . 15 73 Cannon 56 | . . . . 7 . 7 42 Launcher 9 | . 9 . . . . . . Special . | . . . . . . . . Kinetic 44 | . 21 . 23 . . . . Thermal 428 | . 19 196 115 14 . 14 70 Explosive 9 | . 9 . . . . . . Electromagnetic 104 | . . . 44 7 . 8 45 Robot Hit Streak 39 | . 18 33 39 7 . 9 16 Robot Miss Streak 2 | . 1 2 2 1 . 1 1 Penetration Max . | . . . . . . . . Secondary Targets 14 | . . 9 5 . . . . Max Gunslinging Chain 1 | . . 1 1 . . . . Shots Hit Robots 455 | . 44 159 153 12 . 16 71 Core Hits 220 | . 28 79 65 7 . 7 34 Critical Kills . | . . . . . . . . Critical Parts Destroyed . | . . . . . . . . Critical Strikes 19 | . . 9 7 . . . 3 Burn 18 | . . 9 7 . . . 2 Corrupt 1 | . . . . . . . 1 Melee Attacks . | . . . . . . . . Impact . | . . . . . . . . Slashing . | . . . . . . . . Piercing . | . . . . . . . . Sneak Attacks . | . . . . . . . . Combat Hostiles . | . . . . . . . . Follow-up Attacks . | . . . . . . . . Damage Inflicted 8192 | . 887 2377 2569 299 . 334 1726 Guns 6622 | . 333 2377 2366 217 . 226 1103 Cannons 813 | . . . . 82 . 108 623 Explosions 757 | . 554 . 203 . . . . Melee . | . . . . . . . . Ramming . | . . . . . . . . Kinetic 474 | . 147 . 327 . . . . Thermal 5601 | . 186 2377 1678 160 . 204 996 Explosive 554 | . 554 . . . . . . Electromagnetic 1563 | . . . 564 139 . 130 730 Impact . | . . . . . . . . Slashing . | . . . . . . . . Piercing . | . . . . . . . . Highest Corruption . | . . . . . . . . Average Corruption . | . . . . . . . . Corruption Purged . | . . . . . . . . Corruption Blocked . | . . . . . . . . Overload Shots . | . . . . . . . . Overflow Damage 34 | . 5 . . . . . 29 Projectiles 29 | . . . . . . . 29 Explosions 5 | . 5 . . . . . . Melee . | . . . . . . . . Knockbacks . | . . . . . . . . Impact . | . . . . . . . . Kinetic . | . . . . . . . . Secondary . | . . . . . . . . Self-Inflicted Damage 41 | . 25 . 16 . . . . Shots 3 | . 2 . 1 . . . . Rammed 1 | . . 1 . . . . . Targets Rammed 1 | . . 1 . . . . . Kicked . | . . . . . . . . Crushed . | . . . . . . . . Highest Temperature 295 | . 64 295 46 54 . 81 105 Average Temperature 53 | . 21 107 16 22 . 31 28 Received Heat Transfer 785 | . 144 260 219 . . 36 126 Siege Activations . | . . . . . . . . Martial Activations . | . . . . . . . . Shielding Activations . | . . . . . . . . Robots Disrupted . | . . . . . . . . Combat Hostiles . | . . . . . . . . Robots Corrupted . | . . . . . . . . Combat Hostiles . | . . . . . . . . Parts Fried 8 | . . . 4 . . . 4 Impact Corruptions . | . . . . . . . . Robots Melted 3 | . . 1 2 . . . . Combat Hostiles 3 | . . 1 2 . . . . Parts Melted 23 | . 1 4 14 . . . 4 Heat Transferred 13693 | . 484 6384 4494 259 . 333 1739 Parts Sabotaged . | . . . . . . . . Parts Stolen . | . . . . . . . . Parts Stripped . | . . . . . . . . Power Chain Reactions 4 | . . . 4 . . . . Alert | -11 -10 -10 -9 -9 -9 -8 -8 ------- Run | Yrd Mat Min Mat Min Exi Min Mat Maximum Alert Level 1 | . . . 1 . . . . Low Security (%) 90 | 100 100 100 60 100 . 100 100 Level 1 9 | . . . 39 . . . . Level 2 . | . . . . . . . . Level 3 . | . . . . . . . . Level 4 . | . . . . . . . . Level 5 . | . . . . . . . . High Security . | . . . . . . . . Max Security . | . . . . . . . . Peak Influence 255 | . 70 55 255 84 . 112 189 Initial 26 | . . . . 7 . . 26 Average 52 | . 14 5 142 11 . 18 96 Influence Increases 2184 | . 230 304 845 99 . 127 579 Destroy 0b10 Robot/C 1300 | . 120 120 540 60 . 100 360 Destroy 0b10 Robot/NC 365 | . 35 150 90 20 . . 70 Destroy Leader 322 | . 32 30 130 10 . 20 100 Allied During Kill 18 | . . . . 7 . 4 7 Successful Hack 45 | . 10 . 17 . . . 18 Disable Machine 24 | . . 4 8 . . . 12 Destroy Structure 65 | . 33 . 15 2 . 3 12 Partial Spotted 15 | . . . 15 . . . . Lose Combat Pursuer 30 | . . . 30 . . . . Influence Decreases 2069 | . 230 304 819 96 29 30 561 Entered New Map 119 | . . . . 19 29 . 71 Time Decay 1740 | . 230 284 669 77 . 30 450 Lost Part 20 | . . 20 . . . . . Lost Ally 40 | . . . . . . . 40 Purge Threat 150 | . . . 150 . . . . Squads Dispatched 4 | . . . 2 . . . 2 Investigation 1 | . . . . . . . 1 Extermination . | . . . . . . . . Reinforcement 3 | . . . 2 . . . 1 Assault . | . . . . . . . . Garrison . | . . . . . . . . Intercept . | . . . . . . . . Searches Triggered . | . . . . . . . . Construction Impeded . | . . . . . . . . Haulers Reinforced . | . . . . . . . . Active Scanning Responses . | . . . . . . . . Cargo Convoy Interrupts . | . . . . . . . . Stealth | -11 -10 -10 -9 -9 -9 -8 -8 --------- Run | Yrd Mat Min Mat Min Exi Min Mat Distress Signals 6 | . . . 5 . . . 1 Communications Jammed . | . . . . . . . . Distress Signals . | . . . . . . . . Times Spotted 107 | . 10 26 39 3 . 5 24 Peak Tracking Total 18 | . 3 18 4 3 . 2 4 Tactical Retreats 1 | . . . 1 . . . . Traps | -11 -10 -10 -9 -9 -9 -8 -8 ------- Run | Yrd Mat Min Mat Min Exi Min Mat Traps Triggered 4 | . . . 4 . . . . Indirectly . | . . . . . . . . Trap Hack Attempts . | . . . . . . . . Triggered . | . . . . . . . . Disarmed 8 | . . . 3 . . . 5 Reprogrammed 1 | . . . 1 . . . . Reused . | . . . . . . . . Traps Extracted . | . . . . . . . . Installed . | . . . . . . . . Triggered . | . . . . . . . . Machines | -11 -10 -10 -9 -9 -9 -8 -8 ---------- Run | Yrd Mat Min Mat Min Exi Min Mat Machines Disabled 6 | . . 1 2 . . . 3 Max in Single Turn 2 | . . 1 1 . . . 2 Machines Repaired . | . . . . . . . . Machines Dismantled . | . . . . . . . . Machines Sabotaged . | . . . . . . . . Overloaded Fab Kills . | . . . . . . . . Hacking | -11 -10 -10 -9 -9 -9 -8 -8 --------- Run | Yrd Mat Min Mat Min Exi Min Mat Machines Accessed 30 | . 8 1 13 1 1 . 6 Terminals 22 | . 6 1 10 . . . 5 Fabricators . | . . . . . . . . Repair Stations 3 | . 1 . 2 . . . . Recycling Units 2 | . 1 . 1 . . . . Scanalyzers 1 | . . . . . . . 1 Garrison Access . | . . . . . . . . Total Hacks 55 | . 15 1 26 1 1 . 11 Successful 38 | . 9 1 19 1 1 . 7 Failed 17 | . 6 . 7 . . . 4 Catastrophic 2 | . . . . . . . 2 Database Lockouts . | . . . . . . . . Manual 6 | . . . 1 . 1 . 4 Terminals 42 | . 11 1 22 . . . 8 Fabricators . | . . . . . . . . Repair Stations 6 | . 3 . 3 . . . . Recycling Units 2 | . 1 . 1 . . . . Scanalyzers 3 | . . . . . . . 3 Garrison Access . | . . . . . . . . Terminal Hacks 28 | . 6 1 15 1 1 . 4 Record 2 | . . . 2 . . . . Robot Analysis 3 | . . . 3 . . . . Prototype ID Bank 6 | . 3 . 2 . . . 1 Open Door 1 | . . . . 1 . . . Branch Access Points 2 | . . . 1 . . . 1 Emergency Access Points 1 | . . . 1 . . . . Terminal Index 1 | . 1 . . . . . . Unreport Threat 1 | . . . 1 . . . . Locate Traps 2 | . 1 . 1 . . . . Disarm Traps 3 | . . . 1 . . . 2 Reprogram Traps 1 | . . . 1 . . . . Dispatch Records 1 | . . 1 . . . . . Registered Prototypes 1 | . . . 1 . . . . Zone Layout 2 | . 1 . 1 . . . . Proto ID Catalog 1 | . . . . . 1 . . Fabricator Hacks . | . . . . . . . . Repair Station Hacks 5 | . 2 . 3 . . . . Scan Component 3 | . 1 . 2 . . . . Repair 2 | . 1 . 1 . . . . Recycling Unit Hacks 2 | . 1 . 1 . . . . Report Inventory 1 | . 1 . . . . . . Retrieve Matter 1 | . . . 1 . . . . Scanalyzer 3 | . . . . . . . 3 Insert Component 2 | . . . . . . . 2 Analyze 1 | . . . . . . . 1 Garrison Access Hacks . | . . . . . . . . Unauthorized Hacks . | . . . . . . . . Terminals . | . . . . . . . . Fabricators . | . . . . . . . . Repair Stations . | . . . . . . . . Recycling Units . | . . . . . . . . Scanalyzers . | . . . . . . . . Garrison Access . | . . . . . . . . Data Cores Recovered 3 | . . . 2 . . . 1 Used 1 | . . . . . . . 1 Hacking Detections 16 | . 5 . 6 . . . 5 Full Trace Events 3 | . 1 . 1 . . . 1 Feedback Events . | . . . . . . . . Feedback Blocked . | . . . . . . . . Robot Schematics Acquired . | . . . . . . . . Robots Built . | . . . . . . . . Authchips . | . . . . . . . . Time . | . . . . . . . . Total Robot Build Rating . | . . . . . . . . Part Schematics Acquired 1 | . . . . . . . 1 Parts Built . | . . . . . . . . Authchips . | . . . . . . . . Time . | . . . . . . . . Total Part Build Rating . | . . . . . . . . Parts Repaired 2 | . 1 . 1 . . . . Time 64 | . 26 . 38 . . . . Parts Recycled . | . . . . . . . . Recycled Matter . | . . . . . . . . Retrieved Matter . | . . . . . . . . Retrieved Components . | . . . . . . . . Parts Scanalyzed 1 | . . . . . . . 1 Part Schematics Acquired 1 | . . . . . . . 1 Parts Damaged . | . . . . . . . . Bothacking | -11 -10 -10 -9 -9 -9 -8 -8 ------------ Run | Yrd Mat Min Mat Min Exi Min Mat Used RIF Installer . | . . . . . . . . Robots Hacked . | . . . . . . . . Non-combat . | . . . . . . . . Combat . | . . . . . . . . Robot Hacks Applied . | . . . . . . . . Relay Couplers Released . | . . . . . . . . Fabnet Peak Effective % . | . . . . . . . . Robots Rewired . | . . . . . . . . Allies Hacked . | . . . . . . . . Hacks Repelled . | . . . . . . . . Allies | -11 -10 -10 -9 -9 -9 -8 -8 -------- Run | Yrd Mat Min Mat Min Exi Min Mat Total Allies 6 | . . . . 6 . . . Largest Group 6 | . . . . 6 5 3 3 Highest-Rated Group 114 | . . . . 114 83 40 40 Highest-Rated Ally 31 | . . . . 31 31 16 16 Total Orders . | . . . . . . . . Ally Attacks 23 | . . . . 1 . 1 21 Total Damage 168 | . . . . . . . 168 Kills 3 | . . . . . . . 3 Allies Corrupted . | . . . . . . . . Allies Melted . | . . . . . . . . Intel | -11 -10 -10 -9 -9 -9 -8 -8 ------- Run | Yrd Mat Min Mat Min Exi Min Mat Active Infowar (turns) 4169 | . 364 1386 985 476 202 154 602 Sensors 1364 | . 364 1000 . . . . . Structural 3244 | . . 825 985 476 202 154 602 Seismic 7 | . . . . 7 . . . Robot Analysis Total 3 | . . . 3 . . . . Derelict Logs Recovered . | . . . . . . . . Drone Launches . | . . . . . . . . Drone Recoveries . | . . . . . . . . Exploration | -11 -10 -10 -9 -9 -9 -8 -8 ------------- Run | Yrd Mat Min Mat Min Exi Min Mat Turns Passed 4493 | 38 647 1386 988 476 202 154 602 Spaces Moved 4175 | 30 576 1373 768 547 281 191 409 Core 10 | 6 . 4 . . . . . Treads . | . . . . . . . . Legs 214 | 24 190 . . . . . . Wheels . | . . . . . . . . Hover 3951 | . 386 1369 768 547 281 191 409 Flight . | . . . . . . . . Fastest Speed 48 | 50 56 56 74 65 65 65 48 Average Speed 70 | 109 80 68 74 66 65 65 59 Slowest Speed 120 | 120 120 120 77 74 65 65 65 Overloaded Moves . | . . . . . . . . Propulsion Burnouts . | . . . . . . . . Robots Hopped . | . . . . . . . . Potential Cave-ins . | . . . . . . . . Cave-ins Triggered . | . . . . . . . . Exploration Rate (%) 65 | 3 79 98 71 99 62 67 43 Regions Visited 7 Branch Regions 4 Pre-discovered Areas 1 | . . 1 . . . . . Known Exits Taken 7 | 1 1 1 1 1 1 1 . Unknown Exits Taken . | . . . . . . . . Scrap Searched 3 | . . 2 . 1 . . . Spaces Dug . | . . . . . . . . Terrain Destroyed 63 | . 36 . 10 4 . 3 10 Melee . | . . . . . . . . Projectile 17 | . . . . 4 . 3 10 AOE 46 | . 36 . 10 . . . . Terrain Rammed . | . . . . . . . . Walls Destroyed . | . . . . . . . . Machines Disabled . | . . . . . . . . Actions | -11 -10 -10 -9 -9 -9 -8 -8 --------- Run | Yrd Mat Min Mat Min Exi Min Mat Total 5189 | 33 711 1615 1007 645 301 203 674 Wait 478 | . 57 111 58 72 15 . 165 Move 4168 | 29 575 1372 767 546 280 190 409 Hop . | . . . . . . . . Pick Up 48 | . 9 7 17 6 2 . 7 Fast Attach 13 | 4 2 2 3 1 . . 1 Attach 24 | . 6 3 10 3 1 . 1 Detach 2 | . . 1 1 . . . . Swap 27 | . 3 5 3 5 . . 11 Drop 35 | . 4 4 10 5 3 . 9 Fire 307 | . 44 98 108 7 . 8 42 Melee . | . . . . . . . . Ram 1 | . . 1 . . . . . Kick . | . . . . . . . . Crush . | . . . . . . . . Escape Stasis . | . . . . . . . . Rewire . | . . . . . . . . Trap . | . . . . . . . . Miscellaneous 86 | . 11 11 30 . . 5 29 Route ------- -11/Scrapyard -10/Materials (discovered 3 exits: *Mat x2 / *Min) -10/Mines (discovered 2 exits: *Mat x2) -9/Materials (discovered 2 exits: *Mat / *Min) -9/Mines (discovered 3 exits: *Mat x2 / *Exi) -9/Exiles (discovered 2 exits: *Min x2) -8/Mines -8/Materials (discovered 2 exits: *Fac x2) History --------- Turn | Location | Event 7 | -11/Scrapyard | Identified exit to Materials 7 | -11/Scrapyard | Discovered exit to Materials (range 15) 39 | -11/Scrapyard | Entered Materials 305 | -10/Materials | Upgraded with Power slot (x1) 305 | -10/Materials | Upgraded with Propulsion slot (x1) 305 | -10/Materials | Upgraded with Utility slot (x1) 305 | -10/Materials | Upgraded with Weapon slot (x1) 305 | -10/Materials | Upgraded with Utility slot (x1) 343 | -10/Materials | Build established: Hacker-Mutant 351 | -10/Materials | Repaired Hover Unit 380 | -10/Materials | Identified exit to Materials 380 | -10/Materials | Discovered exit to Materials (range 12) 512 | -10/Materials | Identified exit to Mines 512 | -10/Materials | Discovered exit to Mines (range 14) 626 | -10/Materials | Discovered exit to Materials (range 15) 686 | -10/Materials | Entered Mines 772 | -10/Mines | Reached level 2 802 | -10/Mines | Upgraded with Propulsion slot (x1) 821 | -10/Mines | A weapon hastily lodged in a ceiling crevice suddenly fell to the ground 834 | -10/Mines | Learned location of Storage (-7) 875 | -10/Mines | Discovered exit to Materials (range 12) 1046 | -10/Mines | Assembled infested the area 1124 | -10/Mines | Core integrity fell below 50% 1125 | -10/Mines | Destroyed 7 combat bots 1179 | -10/Mines | Core integrity fell below 20% 1203 | -10/Mines | Destroyed 10 combat bots 1481 | -10/Mines | Build established: Scavenger-Mutant 1674 | -10/Mines | Found a Scrap Suit stashed away for nefarious purposes 1687 | -10/Mines | Found Scrap Suit 1808 | -10/Mines | Discovered exit to Materials (range 5) 2072 | -10/Mines | Entered Materials 2073 | -9/Materials | Core integrity fell below 50% 2074 | -9/Materials | Reached level 3 2074 | -9/Materials | Reached level 4 2369 | -9/Materials | Reached level 5 2534 | -9/Materials | Identified exit to Materials 2534 | -9/Materials | Discovered exit to Materials (range 11) 2638 | -9/Materials | Repaired Lgt. Nuclear Core 2876 | -9/Materials | Reached level 6 2960 | -9/Materials | Identified exit to Mines 3059 | -9/Materials | Upgraded with Propulsion slot (x1) 3059 | -9/Materials | Upgraded with Weapon slot (x1) 3060 | -9/Materials | Entered Mines 3063 | -9/Mines | Received a Mining Laser from a helpful Derelict 3121 | -9/Mines | Met a Derelict who couldn't figure out how to use a Trap Extractor 3179 | -9/Mines | Discovered exit to Materials (range 8) 3212 | -9/Mines | Discovered exit to Materials (range 6) 3340 | -9/Mines | Assisted by bots powering up and referring to "LRC-V3" 3440 | -9/Mines | Build established: Scavenger-Tank 3509 | -9/Mines | Deemed a non-threat by the Exiles lab entrance 3509 | -9/Mines | Identified exit to Exiles 3509 | -9/Mines | Discovered exit to Exiles (range 5) 3536 | -9/Mines | Entered Exiles 3536 | -9/Exiles | Accompanied by 5 allies 3538 | -9/Exiles | Reached level 7 3549 | -9/Exiles | Identified exit to Mines 3549 | -9/Exiles | Discovered exit to Mines (range 15) 3561 | -9/Exiles | Met 8R-AWN 3566 | -9/Exiles | Led the pair of lost Derelicts to a safe place 3572 | -9/Exiles | Met EX-HEX 3575 | -9/Exiles | Upgraded with Utility slot (x1) 3592 | -9/Exiles | Met EX-BIN 3601 | -9/Exiles | Aligned with FarCom system 3602 | -9/Exiles | Given EX-Vault access code 3620 | -9/Exiles | Opened EX-Vault 3626 | -9/Exiles | Found Skeleton Box 3639 | -9/Exiles | Warned to stay clear of 0b10 Research branches 3657 | -9/Exiles | Met EX-DEC 3719 | -9/Exiles | Discovered exit to Mines (range 10) 3738 | -9/Exiles | Left Exiles lab with Skeleton Box 3738 | -9/Exiles | Entered Mines 3738 | -8/Mines | Accompanied by 3 allies 3865 | -8/Mines | Discovered exit to Materials (range 11) 3892 | -8/Mines | Entered Materials 3892 | -8/Materials | Accompanied by 3 allies 3894 | -8/Materials | Reached level 8 3931 | -8/Materials | Reached level 9 4360 | -8/Materials | Identified exit to Factory 4360 | -8/Materials | Discovered exit to Factory (range 4) 4387 | -8/Materials | Reached level 10 4483 | -8/Materials | Discovered exit to Factory (range 8) 4494 | -8/Materials | Self-destructed Last Messages --------------- 04418_ System Restoration Module fried. 04418_ O-24 Administrator destroyed. 04418_ Terminal disabled. 04424_ U-05 Engineer builds a Wall. 04425_ K-01 Serf collects debris. 04434_ Used Protomatter to restore core integrity (+13) 04435_ R-06 Scavenger destroyed. 04435_ K-01 Serf destroyed. 04438_ Used Protomatter to restore part integrity (+13) 04445_ K-01 Serf collects debris. 04456_ Protomatter-1 decays. 04456_ K-01 Serf collects debris. 04464_ Acquired Field Laser. 04473_ W-25 Informer destroyed. 04483_ EXIT=FOUND: FACTORY 04484_ Connecting with Terminal... >>Access(Branch) No branch access points found. 04484_ Connecting with Terminal... 04488_ Y-45 Defender destroyed. Map ----- +----------------------------------------------------+ | ?????????????????????????????????????????????????? | | ?????????????????????????????????????????????????? | | ?????????????????????????????????????????????????? | | ?????????????????????????????????????????????????? | | ???????????????????????????????????? ????????????? | | ???????????????????????????????????? ????????????? | | ??????????????????????????????????## ??????????? | | ??????????????????????????????????## ##??????????? | | ??????????????????????????????????## ##??????????" | | ?????????????????????????????????### ##??????????" | | ?????????????????????????????????### ##??????????" | | ????????????????????????????????? ##????????? | | ?????????????????????????????????? ##????????? " | | ????????????Y?????????????????????## ##????????? " | | ???????????????????????????????##### ###???????? " | | ???????????????????????????????##### ### # | | ???????????????????????????????## ###+######+# | | ???????????????????????????????## " %= | | ???????????????????????????????## "T = | | ???????????????????????????????## | | ??????????????????" """ """ ##### ###+######## | | ??????????????????################ ## ##### | | ?????????????????###! # ##% ! ##??? | | ?????????????????###=!! """"" # ## ##??? | | ????????????????? #%!![ """"" + ##!! ##??? | | ????????????????? ##!% @ """"" # ##!! ! ##??? | | ??????????????????##=! = # < ##! ##??? | | ??????????????????## = !# ##########??? | | ??????????????????#############################??? | | ??????????????????## ??????????? | | ?????????????????????????????????????????????????? | | ?????????????????????????????????????????????????? | | ?????????????????????????????????????????????????? | | ?????????????????????????????????????????????????? | | ?????????????????????????????????????????????????? | | ?????????????????????????????????????????????????? | | ?????????????????????????????????????????????????? | | ?????????????????????????????????????????????????? | | ?????????????????????????????????????????????????? | | ?????????????????????????????????????????????????? | | ?????????????????????????????????????????????????? | | | | | | | | | | | | | | | | | | | +----------------------------------------------------+ Best States ------------- Heat Dissipation 73 Energy Generation 28 Energy Capacity 1010 Matter Stores 300 Matter Capacity 300 Sight Range 16 Robot Scan Range 14 Terrain Scan Density 110 Additional Mass Support 6 Armor Coverage 450 Resistance: KI 55 Resistance: TH 50 Resistance: EX 45 Resistance: EM 35 Resistance: I 35 Resistance: S 35 Resistance: P 35 Evasion (%) 55 Offensive Hacking 20 Item Schematics ----------------- Imp. Hover Unit | -8/Materials | Scanalyzed Robot Schematics ------------------ None Fabricated ------------ Nothing Repaired ---------- Hover Unit | 46% | -10/Materials Lgt. Nuclear Core | 30% | -9/Materials Alien Tech Used ----------------- None Achievements -------------- None Challenges ------------ None RPGLIKE | -11 -10 -10 -9 -9 -9 -8 -8 --------- Run | Yrd Mat Min Mat Min Exi Min Mat Levels Raised 9 | . . 1 4 . 1 . 3 XP Earned 20135 | 6000 800 1250 5908 850 350 1100 3877 XP Spent 17745 | . 5675 1780 4585 . 2955 . 2750 Upgrades 54 | . 18 11 9 . 10 . 6 Power Slot 1 | . 1 . . . . . . Propulsion Slot 3 | . 1 1 1 . . . . Utility Slot 3 | . 2 . . . 1 . . Weapon Slot 2 | . 1 . 1 . . . . Core Integrity 14 | . 3 4 1 . 6 . . Heat Dissipation 8 | . 2 5 1 . . . . Energy Generation 1 | . . . 1 . . . . Energy Storage 3 | . . . 1 . 2 . . Mass Support 2 | . 2 . . . . . . Inventory Capacity 4 | . 3 . 1 . . . . Terrain Scan Density 1 | . . 1 . . . . . Ranged Accuracy 3 | . . . 2 . 1 . . KI Resistance % 4 | . 1 . . . . . 3 TH Resistance % 3 | . 1 . . . . . 2 EX Resistance % 2 | . 1 . . . . . 1 Protomatter Created 762 | . 105 73 308 . . 91 185 Integrity Restored 1649 | . 188 192 648 . . 120 501 Core 1332 | . 107 192 648 . . 120 265 Parts 317 | . 81 . . . . . 236 Protomatter Decayed 104 | . 19 6 42 . . . 37 Game ------ Seed ChargeLauncherMicroactuators Manual? 0 Play Time 01:26:51 Cumulative 86.7 hours Start 2025.06.04 @ 18:59:09 End 2025.06.04 @ 21:32:37 Sessions 1 Manual Loads 0 Difficulty Explorer Special Mode Winter2019/RPGLIKE Game No. 37 Rogue 0 Adventurer 5 Explorer 32 Win Type - Total 12 Types 5/2/0/1/1/1/1/1/0/0 Lore% 42 Gallery% 56 Achievement% 70 Wizard Run 0 Options --------- Layout 0 ASCII 0 Keyboard 0 Movement Mouse Keybinds 0 Fullscreen 0 Font 16/SmallcapsGlow Map View 88x55 Zoom Use 0% Tactical HUD 1 Map Filters NONE Filters NONE Steam 1 RUN: 22e4148d-4ad4-4a5c-b2fb-e964aa7e566a